fUSD/lending_fUSD_20250525
["ID","MTS","AMOUNT","RATE_DAILY","PERIOD"]
[362289640,1748163043411,-420.0,0.00019994,2]
[362289641,1748163043420,-420.0,0.00019994,2]
[362289642,1748163043429,-420.0,0.00019994,2]
[362289643,1748163043439,-2281.2,0.00019994,2]
[362289644,1748163043448,-925.97,0.00019994,2]
[362289646,1748163043457,-420.0,0.00019994,2]
[362289648,1748163043467,-420.0,0.00019994,2]
[362289649,1748163043477,-502.70773156,0.00019994,2]
[362289650,1748163043486,-420.0,0.00019994,2]
[362289651,1748163043495,-420.0,0.00019994,2]
[362289652,1748163043505,-156.719649,0.00019994,2]
[362289653,1748163043514,-420.0,0.00019994,2]
[362289654,1748163043523,-433.15391909,0.00019994,2]
[362289655,1748163043532,-420.0,0.00019994,2]
[362289656,1748163043542,-420.0,0.00019994,2]
[362289657,1748163043551,-420.0,0.00019994,2]
[362289658,1748163043561,-420.0,0.00019994,2]
[362289659,1748163043577,-420.0,0.00019994,2]
[362289660,1748163043587,-454.13063335,0.00019994,2]
[362289661,1748163043597,-152.925138,0.00019994,2]
[362289662,1748163043607,-397.35380773,0.00019994,2]
[362289663,1748163043616,-420.0,0.00019994,2]
[362289664,1748163043626,-420.0,0.00019994,2]
[362289665,1748163043637,-420.0,0.00019994,2]
[362289666,1748163043646,-420.0,0.00019994,2]
[362289667,1748163043655,-420.0,0.00019994,2]
[362289668,1748163043665,-420.0,0.00019994,2]
[362289669,1748163043674,-420.0,0.00019994,2]
[362289670,1748163043683,-420.0,0.00019994,2]
[362289671,1748163043692,-420.0,0.00019995,2]
[362289672,1748163043702,-420.0,0.00019995,2]
[362289673,1748163043711,-420.0,0.00019995,2]
[362289674,1748163043721,-420.0,0.00019995,2]
[362289675,1748163043731,-420.0,0.00019995,2]
[362289676,1748163043740,-434.14692057,0.00019995,2]
[362289677,1748163043750,-521.84967837,0.00019995,2]
[362289678,1748163043762,-420.0,0.00019995,2]
[362289679,1748163043771,-420.0,0.00019995,2]
[362289680,1748163043781,-420.0,0.00019995,2]
[362289681,1748163044006,-420.0,0.00019995,2]
[362289682,1748163044028,-420.0,0.00019995,2]
[362289683,1748163044038,-420.0,0.00019995,2]
[362289684,1748163044048,-420.0,0.00019995,2]
[362289685,1748163044057,-420.0,0.00019995,2]
[362289686,1748163044068,-420.0,0.00019995,2]
[362289687,1748163044078,-420.0,0.00019995,2]
[362289688,1748163044087,-420.0,0.00019995,2]
[362289689,1748163044097,-420.0,0.00019995,2]
[362289690,1748163044106,-420.0,0.00019995,2]
[362289691,1748163044117,-420.0,0.00019995,2]
[362289692,1748163044126,-420.0,0.00019995,2]
[362289693,1748163044136,-435.98030907,0.00019995,2]
[362289694,1748163044146,-420.0,0.00019995,2]
[362289695,1748163044155,-420.0,0.00019995,2]
[362289696,1748163044165,-420.0,0.00019995,2]
[362289697,1748163044175,-420.0,0.00019995,2]
[362289698,1748163044185,-420.0,0.00019995,2]
[362289699,1748163044195,-420.0,0.00019995,2]
[362289700,1748163044205,-420.0,0.00019995,2]
[362289701,1748163044214,-420.0,0.00019995,2]
[362289702,1748163044224,-420.0,0.00019995,2]
[362289703,1748163044234,-420.0,0.00019995,2]
[362289704,1748163044244,-420.0,0.00019995,2]
[362289705,1748163044253,-420.0,0.00019995,2]
[362289706,1748163044262,-420.0,0.00019995,2]
[362289707,1748163044271,-420.0,0.00019995,2]
[362289708,1748163044280,-608.28,0.00019995,2]
[362289709,1748163044291,-420.0,0.00019995,2]
[362289710,1748163044300,-420.0,0.00019995,2]
[362289711,1748163044311,-420.0,0.00019995,2]
[362289712,1748163044322,-420.0,0.00019995,2]
[362289713,1748163044331,-425.80679088,0.00019995,2]
[362289714,1748163044341,-420.0,0.00019995,2]
[362289715,1748163044350,-420.0,0.00019995,2]
[362289716,1748163044359,-420.0,0.00019995,2]
[362289717,1748163044369,-420.0,0.00019995,2]
[362289718,1748163044379,-420.0,0.00019995,2]
[362289719,1748163044388,-420.0,0.00019995,2]
[362289720,1748163044399,-420.0,0.00019995,2]
[362289721,1748163044409,-420.0,0.00019995,2]
[362289722,1748163044418,-420.0,0.00019995,2]
[362289723,1748163044428,-420.0,0.00019995,2]
[362289724,1748163044437,-420.0,0.00019995,2]
[362289725,1748163044447,-420.0,0.00019995,2]
[362289726,1748163044456,-420.0,0.00019995,2]
[362289727,1748163044465,-420.0,0.00019995,2]
[362289728,1748163044475,-420.0,0.00019995,2]
[362289729,1748163044484,-420.0,0.00019995,2]
[362289730,1748163044493,-420.0,0.00019995,2]
[362289731,1748163044503,-420.0,0.00019995,2]
[362289732,1748163044513,-420.0,0.00019995,2]
[362289733,1748163044523,-420.0,0.00019995,2]
[362289734,1748163044532,-465.86645463,0.00019995,2]
[362289735,1748163044542,-420.0,0.00019995,2]
[362289736,1748163044552,-420.0,0.00019995,2]
[362289737,1748163044561,-420.0,0.00019995,2]
[362289738,1748163044572,-420.0,0.00019995,2]
[362289739,1748163044581,-439.38,0.00019995,2]
[362289740,1748163044591,-150.0,0.00019995,2]
[362289741,1748163044602,-420.0,0.00019995,2]
[362289742,1748163044613,-448.42411678,0.00019995,2]
[362289743,1748163044625,-512.66,0.00019995,2]
[362289744,1748163044635,-449.79526962,0.00019995,2]
[362289745,1748163044644,-442.66274775,0.00019995,2]
[362289746,1748163044653,-155.61600896,0.00019995,2]
[362289747,1748163044663,-420.0,0.00019995,2]
[362289748,1748163044673,-182.80713278,0.00019995,2]
[362289749,1748163044682,-453.87196721,0.00019995,2]
[362289750,1748163044691,-442.52892907,0.00019995,2]
[362289751,1748163044701,-457.74787579,0.00019995,2]
[362289752,1748163044710,-250.0,0.00019995,2]
[362289753,1748163044719,-508.61539771,0.00019995,2]
[362289754,1748163044728,-443.89060678,0.00019995,2]
[362289755,1748163044739,-420.0,0.00019995,2]
[362289756,1748163044748,-420.0,0.00019995,2]
[362289757,1748163044760,-450.74694816,0.00019995,2]
[362289758,1748163044770,-420.0,0.00019995,2]
[362289759,1748163044779,-424.32436678,0.00019995,2]
[362289760,1748163044789,-420.0,0.00019995,2]
[362289761,1748163044800,-433.94692519,0.00019995,2]
[362289762,1748163044810,-420.0,0.00019995,2]
[362289763,1748163044821,-430.01081595,0.00019995,2]
[362289764,1748163044830,-420.0,0.00019995,2]
[362289765,1748163044840,-435.56762951,0.00019995,2]
[362289766,1748163044850,-420.0,0.00019995,2]
[362289767,1748163044859,-420.0,0.00019995,2]
[362289768,1748163044869,-420.0,0.00019995,2]
[362289769,1748163044878,-444.70196122,0.00019995,2]
[362289770,1748163044888,-1010.81,0.00019995,2]
[362289771,1748163044898,-452.76495715,0.00019995,2]
[362289772,1748163044907,-444.71841317,0.00019995,2]
[362289773,1748163044918,-543.55579108,0.00019995,2]
[362289774,1748163044927,-420.0,0.00019995,2]
[362289775,1748163044936,-2671.25,0.00019995,2]
[362289776,1748163044947,-461.14070113,0.00019995,2]
[362289777,1748163044957,-420.0,0.00019995,2]
[362289778,1748163044967,-2321.95,0.00019995,2]
[362289779,1748163044977,-532.36351027,0.00019995,2]
[362289780,1748163044986,-268.32508539,0.00019995,2]
[362289781,1748163044996,-486.17868223,0.00019995,2]
[362289782,1748163045006,-420.0,0.00019995,2]
[362289783,1748163045015,-447.16706351,0.00019995,2]
[362289784,1748163045026,-420.0,0.00019995,2]
[362289785,1748163045037,-451.03034228,0.00019995,2]
[362289786,1748163045046,-420.0,0.00019995,2]
[362289787,1748163045056,-420.0,0.00019995,2]
[362289788,1748163045067,-420.0,0.00019995,2]
[362289789,1748163045078,-500.0,0.00019995,2]
[362289790,1748163045087,-482.03579497,0.00019995,2]
[362289791,1748163045096,-420.0,0.00019995,2]
[362289792,1748163045106,-490.91154629,0.00019995,2]
[362289793,1748163045114,-420.0,0.00019995,2]
[362289794,1748163045123,-420.0,0.00019995,2]
[362289795,1748163045131,-709.53,0.00019995,2]
[362289796,1748163045140,-431.88823567,0.00019995,2]
[362289797,1748163045149,-420.0,0.00019995,2]
[362289798,1748163045158,-420.0,0.00019995,2]
[362289799,1748163045168,-420.0,0.00019995,2]
[362289800,1748163045177,-420.0,0.00019995,2]
[362289801,1748163045185,-420.0,0.00019995,2]
[362289802,1748163045194,-440.2163627,0.00019995,2]
[362289803,1748163045204,-420.0,0.00019995,2]
[362289804,1748163045212,-420.0,0.00019995,2]
[362289805,1748163045221,-420.0,0.00019995,2]
[362289806,1748163045230,-420.0,0.00019995,2]
[362289807,1748163045240,-440.17776275,0.00019995,2]
[362289808,1748163045249,-370.0,0.00019995,2]
[362289809,1748163045259,-449.02888141,0.00019995,2]
[362289810,1748163045269,-1199.83,0.00019995,2]
[362289811,1748163045278,-453.01836638,0.00019995,2]
[362289812,1748163045288,-420.0,0.00019995,2]
[362289813,1748163045299,-420.0,0.00019995,2]
[362289814,1748163045308,-420.0,0.00019995,2]
[362289815,1748163045319,-420.0,0.00019995,2]
[362289816,1748163045328,-454.48926375,0.00019995,2]
[362289817,1748163045336,-455.37344109,0.00019995,2]
[362289818,1748163045343,-2560.73,0.00019995,2]
[362289819,1748163045351,-465.44439357,0.00019995,2]
[362289820,1748163045359,-420.0,0.00019995,2]
[362289821,1748163045368,-602.05784777,0.00019995,2]
[362289822,1748163045376,-1175.17,0.00019995,2]
[362289823,1748163045386,-171.25322479,0.00019995,2]
[362289824,1748163045396,-420.0,0.00019995,2]
[362289825,1748163045406,-456.52316079,0.00019995,2]
[362289826,1748163045415,-420.0,0.00019995,2]
[362289827,1748163045425,-446.74184472,0.00019995,2]
[362289828,1748163045434,-420.0,0.00019995,2]
[362289829,1748163045443,-442.10949624,0.00019995,2]
[362289830,1748163045452,-809.21,0.00019995,2]
[362289831,1748163045461,-420.0,0.00019995,2]
[362289832,1748163045470,-420.0,0.00019995,2]
[362289833,1748163045480,-420.0,0.00019995,2]
[362289834,1748163045489,-420.0,0.00019995,2]
[362289835,1748163045499,-420.0,0.00019995,2]
[362289836,1748163045509,-497.54975929,0.00019995,2]
[362289837,1748163045518,-635.59,0.00019995,2]
[362289838,1748163045527,-420.0,0.00019995,2]
[362289839,1748163045536,-420.0,0.00019995,2]
[362289840,1748163045545,-447.23928678,0.00019995,2]
[362289841,1748163045553,-420.0,0.00019995,2]
[362289842,1748163045562,-420.0,0.00019995,2]
[362289843,1748163045574,-441.41961472,0.00019995,2]
[362289845,1748163045583,-420.0,0.00019995,2]
[362289846,1748163045592,-469.86241709,0.00019995,2]
[362289847,1748163045601,-420.0,0.00019995,2]
[362289848,1748163045611,-444.37270169,0.00019995,2]
[362289850,1748163045621,-420.0,0.00019995,2]
[362289851,1748163045631,-456.95092588,0.00019995,2]
[362289852,1748163045640,-428.63749188,0.00019995,2]
[362289853,1748163045650,-420.0,0.00019995,2]
[362289854,1748163045659,-420.0,0.00019995,2]
[362289855,1748163045669,-448.61840714,0.00019995,2]
[362289856,1748163045678,-420.0,0.00019995,2]
[362289857,1748163045688,-157.94595994,0.00019995,2]
[362289858,1748163045698,-444.81684979,0.00019995,2]
[362289859,1748163045708,-420.0,0.00019995,2]
[362289860,1748163045718,-444.81289088,0.00019995,2]
[362289861,1748163045727,-420.0,0.00019995,2]
[362289862,1748163045737,-420.0,0.00019995,2]
[362289863,1748163045747,-420.0,0.00019995,2]
[362289864,1748163045758,-420.0,0.00019995,2]
[362289865,1748163045769,-437.31391399,0.00019995,2]
[362289866,1748163045779,-501.40658506,0.00019995,2]
[362289867,1748163045788,-427.01061141,0.00019995,2]
[362289868,1748163045799,-442.01524132,0.00019995,2]
[362289869,1748163045809,-435.75265931,0.00019995,2]
[362289870,1748163045820,-568.59899075,0.00019995,2]
[362289871,1748163045830,-420.0,0.00019995,2]
[362289872,1748163045840,-420.0,0.00019995,2]
[362289873,1748163045849,-420.0,0.00019995,2]
[362289874,1748163045859,-435.67456543,0.00019995,2]
[362289875,1748163045869,-420.0,0.00019995,2]
[362289876,1748163045879,-606.15,0.00019995,2]
[362289877,1748163045889,-420.0,0.00019995,2]
[362289878,1748163045899,-420.0,0.00019995,2]
[362289879,1748163045908,-429.13530847,0.00019995,2]
[362289880,1748163045918,-449.92454572,0.00019995,2]
[362289881,1748163045928,-466.60756163,0.00019995,2]
[362289882,1748163045938,-349.41697748,0.00019995,2]
[362289883,1748163045947,-929.13,0.00019995,2]
[362289884,1748163045958,-470.14210803,0.00019995,2]
[362289885,1748163045969,-430.68412421,0.00019995,2]
[362289886,1748163045978,-420.0,0.00019995,2]
[362289887,1748163045987,-420.0,0.00019995,2]
[362289888,1748163045997,-433.63379828,0.00019995,2]
[362289889,1748163046007,-420.0,0.00019995,2]
[362289890,1748163046016,-420.0,0.00019995,2]
[362289891,1748163046025,-420.0,0.00019995,2]
[362289892,1748163046036,-439.69394763,0.00019995,2]
[362289893,1748163046045,-420.0,0.00019995,2]
[362289894,1748163046054,-1078.79,0.00019995,2]
[362289895,1748163046064,-420.0,0.00019995,2]
[362289896,1748163046074,-2281.2,0.00019995,2]
[362289897,1748163046083,-493.61468019,0.00019995,2]
[362289898,1748163046093,-456.31941843,0.00019995,2]
[362289899,1748163046103,-500.7110234,0.00019995,2]
[362289900,1748163046112,-420.0,0.00019995,2]
[362289901,1748163046123,-463.77141465,0.00019995,2]
[362289902,1748163046133,-420.0,0.00019995,2]
[362289903,1748163046144,-420.0,0.00019995,2]
[362289904,1748163046155,-536.13291299,0.00019995,2]
[362289905,1748163046165,-243.93648585,0.00019995,2]
[362289906,1748163046175,-420.0,0.00019995,2]
[362289907,1748163046186,-436.57,0.00019995,2]
[362289908,1748163046196,-459.06423507,0.00019995,2]
[362289909,1748163046206,-420.0,0.00019995,2]
[362289910,1748163046216,-511.23,0.00019995,2]
[362289911,1748163046225,-499.75,0.00019995,2]
[362289912,1748163046235,-437.97655198,0.00019995,2]
[362289913,1748163046244,-925.97,0.00019995,2]
[362289914,1748163046253,-420.0,0.00019995,2]
[362289915,1748163046262,-420.0,0.00019995,2]
[362289916,1748163046272,-420.0,0.00019995,2]
[362289917,1748163046282,-437.67612058,0.00019995,2]
[362289918,1748163046291,-469.70207782,0.00019995,2]
[362289919,1748163046301,-478.54,0.00019995,2]
[362289920,1748163046310,-456.23582923,0.00019995,2]
[362289921,1748163046322,-198.88562943,0.00019995,2]
[362289922,1748163046331,-420.0,0.00019995,2]
[362289923,1748163046340,-454.53420354,0.00019995,2]
[362289924,1748163046350,-434.61059503,0.00019995,2]
[362289925,1748163046360,-420.0,0.00019995,2]
[362289926,1748163046369,-420.0,0.00019995,2]
[362289927,1748163046379,-444.10816317,0.00019995,2]
[362289928,1748163046389,-420.0,0.00019995,2]
[362289929,1748163046399,-1410.46,0.00019995,2]
[362289930,1748163046408,-420.0,0.00019995,2]
[362289931,1748163046417,-420.0,0.00019995,2]
[362289933,1748163046427,-420.0,0.00019995,2]
[362289934,1748163046437,-473.67720419,0.00019995,2]
[362289935,1748163046447,-518.3628162,0.00019995,2]
[362289936,1748163046456,-420.0,0.00019995,2]
[362289937,1748163046466,-430.02818679,0.00019995,2]
[362289938,1748163046479,-219.87687735,0.00019995,2]
[362289939,1748163046489,-420.0,0.00019995,2]
[362289940,1748163046499,-712.16,0.00019995,2]
[362289941,1748163046509,-420.0,0.00019995,2]
[362289942,1748163046520,-420.0,0.00019995,2]
[362289944,1748163046530,-439.04873508,0.00019995,2]
[362289945,1748163046539,-449.77358516,0.00019995,2]
[362289947,1748163046549,-420.0,0.00019995,2]
[362289949,1748163046559,-420.0,0.00019995,2]
[362289951,1748163046571,-428.35565525,0.00019995,2]
[362289953,1748163046581,-420.0,0.00019995,2]
[362289955,1748163046591,-420.0,0.00019995,2]
[362289957,1748163046600,-420.0,0.00019995,2]
[362289959,1748163046610,-420.0,0.00019995,2]
[362289962,1748163046620,-530.69206869,0.00019995,2]
[362289964,1748163046631,-420.0,0.00019995,2]
[362289966,1748163046640,-420.0,0.00019995,2]
[362289968,1748163046650,-420.0,0.00019995,2]
[362289970,1748163046660,-420.0,0.00019995,2]
[362289972,1748163046669,-420.0,0.00019995,2]
[362289974,1748163046678,-420.0,0.00019995,2]
[362289976,1748163046687,-481.07207997,0.00019995,2]
[362289978,1748163046697,-440.10341481,0.00019995,2]
[362289979,1748163046707,-420.0,0.00019995,2]
[362289982,1748163046716,-432.25809783,0.00019995,2]
[362289984,1748163046727,-437.68762148,0.00019995,2]
[362289986,1748163046736,-434.1646758,0.00019995,2]
[362289988,1748163046745,-1491.25,0.00019995,2]
[362289990,1748163046755,-420.0,0.00019995,2]
[362289992,1748163046769,-420.0,0.00019995,2]
[362289993,1748163046779,-265.33504791,0.00019995,2]
[362289995,1748163046788,-456.91653315,0.00019995,2]
[362289997,1748163046797,-420.0,0.00019995,2]
[362289999,1748163046808,-420.0,0.00019995,2]
[362290002,1748163046819,-420.0,0.00019995,2]
[362290004,1748163046828,-420.0,0.00019995,2]
[362290006,1748163046838,-483.86100929,0.00019995,2]
[362290007,1748163046848,-420.0,0.00019995,2]
[362290009,1748163046858,-344.77342623,0.00019995,2]
[362290010,1748163046867,-420.0,0.00019995,2]
[362290011,1748163046877,-420.0,0.00019995,2]
[362290012,1748163046888,-509.25,0.00019995,2]
[362290013,1748163046898,-446.93243777,0.00019996,2]
[362290014,1748163046909,-445.48249606,0.00019996,2]
[362290015,1748163046918,-488.77695475,0.00019996,2]
[362290016,1748163046928,-420.0,0.00019996,2]
[362290017,1748163046937,-448.95485805,0.00019996,2]
[362290018,1748163046947,-390.13435553,0.00019996,2]
[362290019,1748163046956,-261.55902803,0.00019996,2]
[362290020,1748163046965,-420.0,0.00019996,2]
[362290021,1748163046974,-494.29973208,0.00019996,2]
[362290022,1748163046983,-445.10506268,0.00019996,2]
[362290023,1748163046992,-443.29912867,0.00019996,2]
[362290024,1748163047002,-435.52311644,0.00019996,2]
[362290025,1748163047011,-437.52728666,0.00019996,2]
[362290026,1748163047021,-430.07011099,0.00019996,2]
[362290027,1748163047031,-420.0,0.00019996,2]
[362290028,1748163047040,-296.03604232,0.00019996,2]
[362290029,1748163047050,-232.45716507,0.00019996,2]
[362290030,1748163047060,-426.04757075,0.00019996,2]
[362290031,1748163047071,-420.0,0.00019996,2]
[362290032,1748163047080,-442.2781237,0.00019996,2]
[362290033,1748163047090,-420.0,0.00019996,2]
[362290034,1748163047099,-432.34169157,0.00019996,2]
[362290035,1748163047109,-420.0,0.00019996,2]
[362290036,1748163047118,-420.0,0.00019996,2]
[362290037,1748163047130,-420.0,0.00019996,2]
[362290038,1748163047140,-420.0,0.00019996,2]
[362290039,1748163047149,-486.51051763,0.00019996,2]
[362290040,1748163047159,-420.0,0.00019996,2]
[362290041,1748163047168,-433.18402141,0.00019996,2]
[362290042,1748163047178,-420.0,0.00019996,2]
[362290043,1748163047187,-439.07024852,0.00019996,2]
[362290044,1748163047196,-420.0,0.00019996,2]
[362290045,1748163047206,-441.01375068,0.00019996,2]
[362290046,1748163047215,-437.56001144,0.00019996,2]
[362290047,1748163047225,-500.0,0.00019996,2]
[362290048,1748163047234,-153.61841918,0.00019996,2]
[362290049,1748163047243,-429.96875676,0.00019996,2]
[362290050,1748163047253,-420.0,0.00019996,2]
[362290051,1748163047263,-420.0,0.00019996,2]
[362290052,1748163047272,-420.0,0.00019996,2]
[362290053,1748163047282,-420.0,0.00019996,2]
[362290054,1748163047291,-420.0,0.00019996,2]
[362290055,1748163047301,-429.08293588,0.00019996,2]
[362290056,1748163047310,-424.92926523,0.00019996,2]
[362290057,1748163047319,-427.00280854,0.00019996,2]
[362290058,1748163047328,-420.0,0.00019996,2]
[362290059,1748163047337,-434.73874971,0.00019996,2]
[362290060,1748163047346,-428.02686963,0.00019996,2]
[362290061,1748163047355,-438.50342252,0.00019996,2]
[362290062,1748163047365,-426.43581604,0.00019996,2]
[362290063,1748163047375,-439.21901587,0.00019996,2]
[362290064,1748163047385,-427.90389922,0.00019996,2]
[362290065,1748163047395,-434.8115996,0.00019996,2]
[362290066,1748163047404,-431.33219061,0.00019996,2]
[362290067,1748163047415,-451.55727686,0.00019996,2]
[362290068,1748163047425,-420.0,0.00019996,2]
[362290069,1748163047435,-420.0,0.00019996,2]
[362290070,1748163047446,-420.0,0.00019996,2]
[362290071,1748163047455,-420.0,0.00019996,2]
[362290072,1748163047465,-420.0,0.00019996,2]
[362290073,1748163047475,-439.14884243,0.00019996,2]
[362290074,1748163047485,-420.0,0.00019996,2]
[362290075,1748163047495,-454.41548751,0.00019996,2]
[362290076,1748163047505,-425.95245383,0.00019996,2]
[362290077,1748163047514,-420.0,0.00019996,2]
[362290078,1748163047525,-420.0,0.00019996,2]
[362290079,1748163047535,-402.67268739,0.00019996,2]
[362290080,1748163047544,-420.0,0.00019996,2]
[362290081,1748163047554,-420.0,0.00019996,2]
[362290082,1748163047564,-432.1392372,0.00019996,2]
[362290083,1748163047575,-345.40019395,0.00019996,2]
[362290084,1748163047585,-453.43292248,0.00019996,2]
[362290085,1748163047595,-426.50384209,0.00019996,2]
[362290086,1748163047604,-448.03045556,0.00019996,2]
[362290087,1748163047615,-420.0,0.00019996,2]
[362290088,1748163047624,-420.0,0.00019996,2]
[362290089,1748163047634,-438.86573883,0.00019996,2]
[362290090,1748163047643,-430.59015749,0.00019996,2]
[362290091,1748163047653,-436.68656583,0.00019996,2]
[362290092,1748163047663,-423.41975645,0.00019996,2]
[362290093,1748163047673,-429.0605617,0.00019996,2]
[362290094,1748163047683,-420.0,0.00019996,2]
[362290095,1748163047692,-420.0,0.00019996,2]
[362290096,1748163047703,-430.58652548,0.00019996,2]
[362290097,1748163047713,-420.0,0.00019996,2]
[362290098,1748163047722,-261.94697212,0.00019996,2]
[362290099,1748163047732,-423.94981702,0.00019996,2]
[362290100,1748163047742,-425.13984757,0.00019996,2]
[362290101,1748163047752,-420.0,0.00019996,2]
[362290102,1748163047765,-420.0,0.00019996,2]
[362290103,1748163047775,-420.0,0.00019996,2]
[362290104,1748163047785,-435.9277318,0.00019996,2]
[362290105,1748163047794,-491.997996,0.00019996,2]
[362290106,1748163047805,-420.0,0.00019996,2]
[362290107,1748163047816,-420.0,0.00019996,2]
[362290108,1748163047827,-420.0,0.00019996,2]
[362290109,1748163047837,-420.0,0.00019996,2]
[362290110,1748163047848,-493.98163502,0.00019996,2]
[362290111,1748163047858,-420.0,0.00019996,2]
[362290112,1748163047868,-434.80336701,0.00019996,2]
[362290113,1748163047878,-420.0,0.00019996,2]
[362290114,1748163047888,-420.0,0.00019996,2]
[362290115,1748163047899,-209.16437689,0.00019996,2]
[362290116,1748163047910,-420.0,0.00019996,2]
[362290117,1748163047920,-420.0,0.00019996,2]
[362290118,1748163047930,-420.0,0.00019996,2]
[362290119,1748163047940,-420.0,0.00019996,2]
[362290120,1748163047952,-420.0,0.00019996,2]
[362290121,1748163047962,-420.0,0.00019996,2]
[362290122,1748163047973,-431.49438882,0.00019996,2]
[362290123,1748163047983,-420.0,0.00019996,2]
[362290124,1748163047993,-420.0,0.00019996,2]
[362290125,1748163048003,-427.09662579,0.00019996,2]
[362290126,1748163048013,-420.0,0.00019996,2]
[362290127,1748163048023,-431.01608842,0.00019996,2]
[362290128,1748163048032,-424.80518578,0.00019996,2]
[362290129,1748163048042,-420.0,0.00019996,2]
[362290130,1748163048052,-420.0,0.00019996,2]
[362290131,1748163048061,-420.0,0.00019996,2]
[362290132,1748163048073,-420.0,0.00019996,2]
[362290133,1748163048083,-420.0,0.00019996,2]
[362290134,1748163048093,-420.0,0.00019996,2]
[362290135,1748163048103,-429.76015353,0.00019996,2]
[362290136,1748163048306,-426.43094959,0.00019996,2]
[362290137,1748163048317,-420.0,0.00019996,2]
[362290138,1748163048329,-401.55571921,0.00019996,2]
[362290139,1748163048339,-420.0,0.00019996,2]
[362290140,1748163048349,-420.0,0.00019996,2]
[362290141,1748163048358,-420.0,0.00019996,2]
[362290142,1748163048369,-420.0,0.00019996,2]
[362290143,1748163048378,-471.79547954,0.00019996,2]
[362290144,1748163048388,-437.65497242,0.00019996,2]
[362290145,1748163048398,-420.0,0.00019996,2]
[362290146,1748163048408,-439.32286037,0.00019996,2]
[362290147,1748163048418,-422.65532946,0.00019996,2]
[362290148,1748163048428,-420.0,0.00019996,2]
[362290149,1748163048438,-420.0,0.00019996,2]
[362290150,1748163048448,-346.03803955,0.00019996,2]
[362290151,1748163048458,-420.0,0.00019996,2]
[362290152,1748163048468,-182.20552981,0.00019996,2]
[362290153,1748163048478,-420.0,0.00019996,2]
[362290154,1748163048488,-420.0,0.00019996,2]
[362290155,1748163048498,-424.57889349,0.00019996,2]
[362290156,1748163048508,-420.0,0.00019996,2]
[362290157,1748163048518,-431.40598089,0.00019996,2]
[362290158,1748163048529,-427.04735708,0.00019996,2]
[362290159,1748163048539,-422.29786945,0.00019996,2]
[362290160,1748163048548,-420.0,0.00019996,2]
[362290161,1748163048558,-442.78875397,0.00019996,2]
[362290162,1748163048568,-4342.6002802,0.00019996,2]
[362290163,1748163048578,-16826.8503261,0.00019996,2]
[362290164,1748163048588,-2877.8420477,0.00019996,2]
[362290165,1748163048598,-249.5112547,0.00019996,2]
[362290166,1748163048608,-263.9808813,0.00019996,2]
[362290167,1748163048618,-151.0,0.00019996,2]
[362290168,1748163048627,-494.92963975,0.00019996,2]
[362290169,1748163048637,-420.0,0.00019996,2]
[362290170,1748163048647,-444.36968458,0.00019996,2]
[362290171,1748163048658,-267.75097773,0.00019996,2]
[362290172,1748163048668,-454.94266472,0.00019996,2]
[362290173,1748163048679,-500.0,0.00019996,2]
[362290174,1748163048689,-448.79428315,0.00019996,2]
[362290175,1748163048699,-232.69792542,0.00019996,2]
[362290176,1748163048710,-709.53,0.00019996,2]
[362290177,1748163048720,-420.0,0.00019996,2]